bitfinex/quotes_ETHUSD_20220227
["timestamp","ask_amount","ask_price","bid_price","bid_amount"]
[1645992067524,0.12333109,2607.5,2605.6,3.68827336]
[1645992067525,0.12333109,2607.5,2606.4,13.0]
[1645992067720,3.32766369,2607.7,2606.4,13.0]
[1645992067721,0.12333109,2607.7,2606.6,8.5]
[1645992067919,0.12333109,2607.7,2606.9,0.01221217]
[1645992068120,0.12333109,2608.8,2607.2,0.4848]
[1645992068321,1.17303879,2608.6,2607.2,0.7848]
[1645992068920,1.17303879,2608.6,2607.2,0.3]
[1645992069119,1.17303879,2608.6,2607.1,0.3]
[1645992069320,0.1624,2608.7,2607.8,0.4848]
[1645992069522,0.1624,2608.7,2606.8,1.1384]
[1645992069523,5.0,2608.2,2606.8,0.8384]
[1645992069720,0.30341217,2608.8,2606.6,0.25]
[1645992069721,3.5,2608.1,2606.6,0.25]
[1645992069925,0.13545266,2608.5,2606.9,0.9592]
[1645992069926,0.30341217,2608.5,2606.9,0.9592]
[1645992070126,0.12333109,2608.5,2606.9,0.9592]
[1645992070523,0.12333109,2608.5,2607.2,1.31044738]
[1645992070724,0.12333109,2608.5,2607.5,0.6711624]
[1645992070972,0.12333109,2609.0,2607.3,30.98]
[1645992070973,0.12333109,2609.0,2608.1,17.0]
[1645992071174,0.12333109,2609.0,2608.0,0.47515357]
[1645992071374,0.26596158,2609.3,2608.3,18.0]
[1645992071579,2.11376711,2610.1,2608.4,16.0]
[1645992071775,2.11376711,2610.1,2608.7,11.87272939]
[1645992071975,3.109e-05,2610.3,2609.8,0.8384]
[1645992072278,0.24644904,2611.4,2610.0,3.08665161]
[1645992072279,0.62333109,2610.9,2610.0,3.08665161]
[1645992072477,0.62333109,2610.9,2609.8,0.8384]
[1645992072478,0.04376861,2610.2,2609.8,0.8384]
[1645992072679,0.04376861,2610.2,2609.5,1.0]
[1645992072680,3.22905374,2609.8,2609.5,1.0]
[1645992072873,3.22905374,2609.8,2609.4,0.13819997]
[1645992073075,0.04092649,2609.7,2609.4,0.13819997]
[1645992073275,0.04092649,2609.7,2608.8,0.25]
[1645992073474,2.97905374,2609.8,2609.2,1.0]
[1645992073475,0.04035807,2609.6,2609.2,1.0]
[1645992073675,1.1130259,2609.5,2608.6,0.25]
[1645992073877,0.01207116,2609.3,2608.1,0.4848]
[1645992074083,0.01207116,2609.3,2607.9,0.25]
[1645992074285,0.01207116,2609.3,2606.9,0.0128389]
[1645992074286,0.01254217,2608.9,2606.9,0.0128389]
[1645992074482,0.01254217,2608.9,2606.7,1.0]
[1645992074483,0.84,2608.6,2606.7,1.0]
[1645992074739,2.54e-05,2605.9,2605.8,0.463]
[1645992074929,3.5,2608.5,2605.8,0.463]
[1645992074930,3.5,2608.5,2606.6,0.25]
[1645992075239,0.84,2608.3,2605.8,0.15119097]
[1645992075432,0.84,2608.3,2607.2,1.39344675]
[1645992075630,0.2486,2608.5,2607.2,1.39344675]
[1645992075837,0.84,2608.1,2607.2,1.39344675]
[1645992076029,0.84,2608.1,2607.2,1.85644675]
[1645992076229,0.84,2608.1,2607.3,0.6712592]
[1645992076429,1.28592649,2609.7,2607.2,1.39344675]
[1645992076430,5.0,2609.3,2607.2,1.39344675]
[1645992076631,5.0,2609.3,2607.2,0.94344675]
[1645992076931,3.9,2609.4,2607.5,0.25]
[1645992077331,3.9,2609.4,2608.6,1.36563088]
[1645992077332,1.0,2609.3,2608.6,1.36563088]
[1645992077530,3.9,2609.4,2607.9,3.5]
[1645992077734,3.9,2609.4,2608.1,0.25]
[1645992077928,3.5,2609.3,2608.1,0.25]
[1645992078130,2.97905374,2609.8,2608.1,0.25]
[1645992078563,1.31059476,2609.6,2608.1,0.38819997]
[1645992078767,2.97905374,2609.8,2608.1,0.68819997]
[1645992078964,2.97905374,2609.8,2608.3,0.6710363]
[1645992079170,2.97905374,2609.8,2608.8,5.0]
[1645992079366,2.97905374,2609.8,2608.9,0.463]
[1645992079667,2.97905374,2609.8,2608.7,1.6]
[1645992079871,2.97905374,2609.8,2608.7,1.3]
[1645992080273,2.95905374,2609.8,2608.7,1.0]
[1645992080468,2.95905374,2609.8,2608.4,1.917]
[1645992080678,1.77175374,2609.8,2608.9,1.0]
[1645992080871,1.77175374,2609.8,2609.4,1.34129855]
[1645992081074,1.77175374,2609.8,2609.0,1.1338609]
[1645992081671,1.77175374,2609.8,2609.0,0.463]
[1645992081879,0.42697564,2610.4,2609.7,0.01295448]
[1645992081880,8.554e-05,2610.4,2609.7,0.01295448]
[1645992082074,8.554e-05,2610.4,2610.1,14.0]
[1645992082075,1.732e-05,2610.4,2610.1,14.0]
[1645992082314,1.732e-05,2610.4,2610.2,0.463]
[1645992082515,0.17623965,2611.2,2610.5,11.48]
[1645992082713,0.17623965,2611.2,2610.4,19.5]
[1645992082714,0.17289612,2611.2,2610.6,30.243]
[1645992082922,2.68713319,2610.5,2610.4,0.3]
[1645992083114,2.68713319,2610.5,2610.2,1.463]
[1645992083515,2.68713319,2610.5,2610.2,1.1335902]
[1645992083717,2.68713319,2610.5,2610.3,2.21579]
[1645992083915,2.68713319,2610.5,2610.3,0.3]
[1645992084119,2.68713319,2610.5,2610.2,0.463]
[1645992084323,2.68713319,2610.5,2609.6,0.463]
[1645992084721,2.68713319,2610.5,2610.0,0.001]
[1645992086170,2.68713319,2610.5,2610.1,1.17778191]
[1645992086367,3.319e-05,2610.5,2610.4,1.0]
[1645992086770,3.319e-05,2610.5,2610.4,1.3]
[1645992086971,3.319e-05,2610.5,2610.4,0.763]
[1645992087373,3.56,2612.4,2610.5,19.5]
[1645992087571,3.56,2612.4,2611.6,0.01213182]
[1645992087572,0.06,2612.4,2611.6,0.01213182]
[1645992087773,0.06,2612.4,2611.7,0.463]
[1645992087968,0.06,2612.4,2611.7,0.763]
[1645992088172,0.06,2612.4,2612.1,1.0]
[1645992088372,0.06,2612.4,2611.1,4.5]
[1645992088373,0.06,2612.4,2611.1,0.463]
[1645992088571,0.06,2612.4,2611.2,3.2553637]
[1645992088772,0.06,2612.4,2611.3,0.463]
[1645992089172,0.06,2612.4,2611.2,0.6489667]
[1645992089372,0.06,2612.4,2611.3,0.463]
[1645992089574,0.1654788,2612.8,2612.4,1.27650576]
[1645992089817,0.1654788,2612.8,2611.9,0.463]
[1645992090115,0.1654788,2612.8,2611.9,1.463]
[1645992090116,0.0404788,2612.8,2611.9,1.463]
[1645992090317,7.88e-05,2612.8,2611.9,0.763]
[1645992090516,0.51868839,2612.9,2612.0,0.95718]
[1645992090722,0.51868839,2612.9,2612.3,0.7657134]
[1645992090723,0.12507107,2612.9,2612.3,0.7657134]
[1645992090916,0.12507107,2612.9,2612.1,0.463]
[1645992090917,0.12507107,2612.9,2612.1,1.463]
[1645992091116,7.107e-05,2612.9,2612.8,1.06795406]
[1645992091320,1.76940635,2613.9,2612.8,1.06795406]
[1645992091321,0.1531,2614.5,2612.8,0.463]
[1645992091516,1.0,2614.7,2612.8,0.67614774]
[1645992091715,0.00741732,2613.5,2612.9,1.9137]
[1645992091921,1.0,2614.7,2612.9,1.9137]
[1645992091922,1.0,2614.7,2613.1,0.7654618]
[1645992092117,3.98e-05,2614.4,2613.2,0.63171159]
[1645992092319,1.0,2615.7,2613.4,19.5]
[1645992092525,1.0,2615.7,2614.3,1.01258138]
[1645992092720,1.0,2615.7,2614.4,0.463]
[1645992092919,0.0171668,2616.2,2614.4,0.763]
[1645992093120,3.6700668,2616.2,2614.8,0.01444984]
[1645992093321,3.6700668,2616.2,2614.9,0.463]
[1645992093322,0.1700668,2616.2,2614.9,0.463]
[1645992093562,3.724561,2616.3,2614.9,0.463]
[1645992093763,3.724561,2616.3,2614.9,0.763]
[1645992093962,3.674561,2616.3,2614.9,0.463]
[1645992094166,3.5,2616.2,2614.9,0.463]
[1645992094367,1.08003159,2616.0,2614.6,0.25]
[1645992094567,3.50330579,2615.9,2614.2,0.463]
[1645992094766,3.50330579,2615.9,2613.5,2.7586]
[1645992094767,0.092604,2614.7,2613.5,2.25793173]
[1645992094967,0.092604,2614.7,2613.6,0.463]
[1645992095572,0.092604,2614.7,2613.7,1.28896091]
[1645992095769,3.50330579,2615.9,2613.7,1.28896091]
[1645992095770,0.01544101,2615.9,2613.8,0.463]
[1645992095972,1.00330579,2616.2,2613.8,0.463]
[1645992096170,0.00330579,2616.2,2613.9,11.73]
[1645992096370,0.00330579,2616.2,2614.3,0.7650549]
[1645992096569,1.33234157,2615.6,2614.4,0.463]
[1645992096772,1.33564736,2615.6,2614.4,0.463]
[1645992096969,0.00330579,2615.6,2614.4,0.463]
[1645992097229,0.00330579,2616.2,2614.2,0.3]
[1645992097426,0.00330579,2616.2,2614.1,0.484]
[1645992097427,0.98722155,2614.2,2614.1,0.484]
[1645992097627,0.00330579,2616.2,2614.1,4.747]
[1645992097832,0.00330579,2616.2,2614.1,5.747]
[1645992098029,3.5,2616.2,2614.1,2.247]
[1645992098230,3.5,2616.2,2614.2,0.17120657]
[1645992098427,3.5,2616.2,2614.3,0.463]
[1645992098631,3.8802,2616.2,2614.4,0.463]
[1645992098830,3.5,2616.2,2614.5,0.463]
[1645992099029,1.05333206,2615.8,2614.5,0.463]
[1645992099838,1.05333206,2615.8,2614.5,1.463]
[1645992100037,1.00333206,2615.8,2614.5,0.463]
[1645992100239,0.90333206,2615.8,2614.7,1.34602979]
[1645992100438,0.90333206,2615.8,2614.9,1.0]
[1645992100637,0.90333206,2615.8,2614.7,1.64602979]
[1645992100638,48.0,2614.9,2614.7,2.60217979]
[1645992100837,3.66892476,2616.3,2615.0,1.0]
[1645992101062,3.66892476,2616.3,2614.7,5.77809303]
[1645992101270,3.66892476,2616.3,2615.1,1.0]
[1645992101465,3.67221527,2616.3,2615.2,0.463]
[1645992101665,3.67221527,2616.3,2615.4,0.95601]
[1645992101866,3.66892476,2616.3,2615.5,0.463]
[1645992102469,5.0,2616.1,2615.1,0.25]
[1645992102668,5.0,2616.1,2614.3,1.8227438]
[1645992102669,3.5,2616.0,2614.3,0.484]
[1645992102870,3.5,2616.0,2614.6,0.25]
[1645992102871,0.00329051,2616.0,2614.6,0.25]
[1645992103272,0.00329051,2616.0,2614.2,11.48]
[1645992103273,0.31949686,2614.3,2614.2,11.48]
[1645992103470,0.31949686,2614.3,2614.2,0.463]
[1645992104714,0.26949686,2614.3,2614.2,0.463]
[1645992105214,0.38349051,2616.0,2614.2,11.943]
[1645992105524,0.38349051,2616.0,2614.3,0.6695389]
[1645992105713,0.38349051,2616.0,2614.5,0.95641]
[1645992105918,0.38349051,2616.0,2614.4,0.95643]
[1645992105919,0.00329051,2616.0,2614.6,0.463]
[1645992106114,5.3802,2615.9,2614.7,0.463]
[1645992106315,0.3802,2615.8,2614.7,0.463]
[1645992106519,0.3302,2615.8,2614.2,0.25]
[1645992106718,0.00329051,2615.7,2614.2,0.25]
[1645992106917,0.00329051,2615.7,2614.3,0.95653]
[1645992107119,0.00329051,2615.7,2614.6,11.48]
[1645992107320,0.3302,2615.7,2614.7,11.48]
[1645992107519,0.00329051,2616.2,2614.8,0.463]
[1645992107720,0.00329051,2615.7,2614.9,0.463]
[1645992107919,3.66892476,2616.3,2615.0,0.463]
[1645992107920,0.00329051,2616.2,2615.0,0.463]
[1645992108122,3.67221527,2616.3,2615.4,0.95614]
[1645992108322,3.66892476,2616.3,2615.4,0.95614]
[1645992108593,3.66892476,2616.3,2615.6,11.48]
[1645992108793,3.61892476,2616.3,2615.6,11.48]
[1645992108996,3.61892476,2616.3,2615.6,11.943]
[1645992109300,0.00329051,2617.3,2615.6,11.943]
[1645992109301,1.10659082,2617.0,2616.5,11.48]
[1645992109492,0.3802,2617.4,2616.5,11.48]
[1645992109493,0.00329051,2617.4,2616.5,11.48]
[1645992109695,0.04263176,2617.2,2616.5,11.943]
[1645992110094,0.04206334,2617.1,2616.5,11.943]
[1645992110298,0.04206334,2617.1,2616.9,0.6688892]
[1645992110498,1.10541214,2617.7,2617.0,0.463]
[1645992110896,0.3802,2617.6,2617.0,0.463]
[1645992111097,0.04717915,2618.0,2617.0,0.463]
[1645992111294,0.02937626,2618.5,2617.0,0.463]
[1645992111295,0.04433703,2617.5,2617.0,11.943]
[1645992111497,0.0170546,2618.5,2617.2,0.95548]
[1645992111498,0.04661072,2617.9,2617.2,0.95548]
[1645992111694,0.04376861,2617.4,2617.3,1.1318013]
[1645992111899,0.0170546,2618.5,2617.3,1.1318013]
[1645992111900,0.0460423,2617.8,2617.3,12.6118013]
[1645992112094,0.0170546,2618.5,2617.3,13.03427033]
[1645992112095,0.04376861,2617.4,2617.3,13.03427033]
[1645992112324,0.0195702,2618.3,2617.4,14.0]
[1645992112526,0.00329051,2618.2,2617.6,0.95532]
[1645992112737,0.0195702,2618.3,2617.7,10.50689742]
[1645992112933,0.0195702,2618.3,2617.8,0.05857362]
[1645992113127,0.0195702,2618.3,2617.9,9.83818992]
[1645992113530,0.0195702,2618.3,2618.1,9.37518992]
[1645992113733,3.8155044,2618.0,2617.9,1.3371781]
[1645992113934,3.8155044,2618.0,2617.0,2.0060413]
[1645992113935,3.21247386,2614.6,2614.4,0.01261398]
[1645992114135,19.5,2617.7,2612.0,2.943]
[1645992114136,5.31838864,2614.5,2613.8,0.01255077]
[1645992114336,5.31838864,2614.5,2612.6,18.48600252]
[1645992114337,3.9653414,2613.9,2612.6,18.48600252]
[1645992114535,3.9653414,2612.7,2611.8,0.58748091]
[1645992114731,3.9653414,2611.9,2611.2,4.12148737]
[1645992114932,3.9653414,2611.9,2610.2,0.01237621]
[1645992114933,3.9653414,2611.3,2610.2,0.01237621]
[1645992115132,6.87030197,2611.8,2608.7,1.0346586]
[1645992115133,3.9653414,2610.9,2608.7,1.0346586]
[1645992115335,0.01281201,2611.6,2610.3,0.04206334]
[1645992115336,3.232102,2610.8,2610.3,0.04206334]
[1645992115531,3.232102,2610.7,2610.3,0.04206334]
[1645992115731,2.274002,2610.6,2609.2,0.01258586]
[1645992115968,1.23061074,2611.7,2609.9,0.0124589]
[1645992115969,2.274002,2610.5,2609.9,0.0124589]
[1645992116268,0.20300298,2612.2,2609.5,11.48]
[1645992116269,3.9653414,2612.3,2611.2,1.11103306]
[1645992116468,9.5467,2613.7,2611.9,0.01265109]
[1645992116469,1.0,2612.9,2611.9,0.01265109]
[1645992116676,1.0,2612.9,2611.9,1.34011933]
[1645992116869,1.0,2612.9,2611.9,12.80746824]
[1645992117077,4.89959146,2613.7,2611.9,12.80746824]
[1645992117078,3.5,2613.7,2612.1,11.48]
[1645992117271,0.2788484,2614.4,2613.0,0.0127729]
[1645992117272,0.00329051,2614.2,2613.0,0.0127729]
[1645992117471,0.23773689,2614.9,2613.0,0.0127729]
[1645992117472,0.00329051,2614.3,2613.0,0.0127729]
[1645992117771,3.653,2614.5,2612.6,0.25]
[1645992117972,5.0,2614.3,2612.6,0.25]
[1645992118170,3.743844,2614.2,2612.6,0.25]
[1645992118370,0.18993135,2614.4,2612.6,0.25]
[1645992118371,0.00329051,2614.4,2612.6,0.25]
[1645992118572,0.00329051,2614.1,2612.6,0.25]
[1645992118773,0.16991427,2615.0,2612.6,0.25]
[1645992118774,3.5,2614.9,2612.6,0.25]
[1645992118973,0.1837671,2615.4,2612.6,0.25]
[1645992118974,3.5,2615.4,2614.5,0.130887]
[1645992119177,5.0,2615.1,2614.5,0.130887]
[1645992119380,0.41372821,2615.2,2614.5,0.130887]
[1645992119582,0.01242988,2615.0,2614.5,0.130887]
[1645992119838,0.16215731,2615.3,2614.5,0.130887]
[1645992120037,0.18560634,2615.3,2614.5,0.130887]
[1645992120238,5.1529,2615.9,2614.5,0.130887]
[1645992120239,0.18046255,2615.9,2614.5,0.130887]
[1645992120539,1.1946,2616.2,2614.8,1.33148834]
[1645992120540,1.0,2615.8,2614.8,1.33148834]
[1645992120939,1.1946,2616.2,2614.8,1.33148834]
[1645992121137,0.463,2617.2,2614.8,1.33148834]
[1645992121138,6.24007173,2616.6,2614.8,1.33148834]
[1645992121335,6.24007173,2616.6,2614.8,1.58148834]
[1645992121336,5.1600583,2616.6,2614.8,1.58148834]
[1645992121537,5.22295349,2616.6,2615.5,1.07746928]
[1645992121736,5.0,2616.6,2615.5,0.52573338]
[1645992121936,5.0,2616.0,2614.5,0.130887]
[1645992122141,0.16080263,2616.9,2614.6,0.25]
[1645992122142,0.21751564,2616.1,2614.6,0.25]
[1645992122537,0.00327481,2616.0,2614.6,0.25]
[1645992122737,0.00327481,2616.4,2614.6,0.25]
[1645992123138,0.61984854,2616.4,2614.6,0.25]
[1645992123337,3.5,2616.3,2614.6,0.25]
[1645992123564,0.00327481,2616.2,2614.6,0.25]
[1645992123763,0.01216434,2616.4,2614.6,0.25]
[1645992123965,0.01216434,2616.4,2614.9,1.23750231]
[1645992124168,0.92812223,2614.6,2614.5,0.130887]
[1645992124774,4.42812223,2614.6,2614.5,0.130887]
[1645992125170,0.92812223,2614.6,2614.5,0.130887]
[1645992125571,0.92812223,2614.6,2614.3,0.25]
[1645992125770,0.92812223,2614.6,2613.6,0.75]
[1645992126169,0.92812223,2614.6,2613.8,0.01229421]
[1645992126374,0.00327481,2615.7,2614.0,12.05339567]
[1645992126572,0.00327481,2615.9,2614.5,12.07421013]
[1645992126772,0.00327481,2616.3,2614.7,11.8602]
[1645992126977,0.5752,2616.9,2615.0,5.0]
[1645992126978,0.00327481,2616.5,2615.0,5.0]
[1645992127244,2.62704592,2617.5,2615.3,17.10799738]
[1645992127245,0.00327481,2616.8,2615.3,17.10799738]
[1645992127453,0.00327481,2616.8,2615.5,11.65534888]
[1645992127643,0.00327481,2616.8,2615.4,12.05058392]
[1645992127644,0.1529,2617.4,2615.8,12.64780223]
[1645992127845,0.0032605,2616.9,2615.8,10.27234821]
[1645992128045,0.1527,2617.9,2615.8,9.3790026]
[1645992128046,0.0032605,2617.3,2615.8,9.3790026]
[1645992128244,0.57188523,2617.5,2615.8,10.3790026]
[1645992128444,0.0032605,2617.4,2616.1,9.0790026]
[1645992128647,0.1527,2617.3,2616.3,9.0790026]
[1645992128848,0.1527,2617.3,2616.3,10.0790026]
[1645992129047,0.1527,2617.8,2616.3,9.3790026]
[1645992129248,0.1527,2617.8,2616.6,9.0790026]
[1645992129249,0.0032605,2617.7,2616.6,9.0790026]
[1645992129450,0.1527,2617.8,2616.6,9.0790026]
[1645992129451,0.0032605,2617.8,2616.8,9.0790026]
[1645992129648,0.1528,2617.6,2616.8,9.5420026]
[1645992129850,3.8187649,2618.0,2617.0,9.0790026]
[1645992129851,0.1527,2617.9,2617.0,9.0790026]
[1645992130051,0.1527,2617.9,2616.9,1.0]
[1645992130250,0.1527,2617.9,2616.9,1.8623633]
[1645992130451,0.1527,2617.9,2616.9,1.0]
[1645992130651,0.1527,2617.9,2616.9,1.19481599]
[1645992131113,0.1326,2617.9,2617.2,11.48]
[1645992131313,0.0195702,2618.3,2617.4,11.48]
[1645992131512,0.0032605,2618.0,2617.4,11.48]
[1645992131718,0.0170546,2618.5,2617.8,11.48]
[1645992131915,0.0170546,2618.5,2617.8,11.943]
[1645992132115,0.0170546,2618.5,2617.9,11.64195162]
[1645992132314,0.64628632,2619.5,2618.1,11.48]
[1645992132516,0.32657837,2619.4,2618.3,11.48]
[1645992132719,0.32982484,2619.4,2618.4,0.1381]
[1645992132917,0.32657837,2619.4,2618.4,0.1381]
[1645992133116,0.1527,2619.3,2618.4,0.01499985]
[1645992133316,0.32657837,2619.2,2618.5,1.29697604]
[1645992133515,0.1527,2619.1,2618.5,1.29697604]
[1645992133718,0.32657837,2619.0,2618.5,1.29697604]
[1645992133917,0.1527,2618.9,2618.5,1.29697604]
[1645992134116,0.1527,2619.4,2618.1,2.50662241]
[1645992134316,1.60255322,2620.0,2618.6,0.94448]
[1645992134317,0.6433805,2619.7,2618.6,0.94448]
[1645992134516,0.61968,2619.4,2618.6,0.94448]
[1645992134726,0.29205281,2619.3,2618.6,0.94448]
[1645992134931,0.61968,2619.4,2618.7,0.94443]
[1645992134932,0.29205281,2619.2,2618.7,0.94443]
[1645992135132,0.92922,2619.2,2618.7,0.94443]
[1645992135338,0.87922,2619.2,2618.7,0.94443]
[1645992135532,0.48496277,2620.0,2618.7,1.24443]
[1645992135731,0.48496277,2620.0,2618.8,0.20641927]
[1645992135732,0.24413605,2619.9,2618.8,0.20641927]
[1645992135932,0.46996292,2620.0,2618.9,1.463]
[1645992136130,0.0173062,2620.5,2619.7,0.5]
[1645992136332,0.0173062,2620.5,2619.8,0.94405]
[1645992136736,0.6433805,2620.9,2619.9,3.5]
[1645992136931,0.6433805,2621.0,2620.0,2.40695]
[1645992137132,0.6355365,2621.4,2621.1,1.19065484]
[1645992137336,0.0171668,2621.6,2621.1,2.13421484]
[1645992137534,0.0171668,2621.6,2621.1,0.94356]
[1645992137735,1.67212245,2622.5,2621.1,0.94356]
[1645992137736,0.00323371,2622.2,2621.1,0.94356]
[1645992137937,0.00323371,2622.3,2621.1,0.94356]
[1645992138142,3.55,2622.8,2621.1,0.94356]
[1645992138143,3.371e-05,2622.6,2621.4,0.5]
[1645992138336,0.832342,2622.9,2621.5,3.963]
[1645992138572,1.25409184,2623.3,2621.7,0.94337]
[1645992138573,1.28322676,2623.3,2621.7,0.94337]
[1645992138774,1.25279696,2623.7,2621.7,1.58789371]
[1645992138973,0.01499985,2623.8,2623.1,0.5]
[1645992139178,0.0170546,2623.9,2623.1,0.94284]
[1645992139377,1.0,2625.0,2623.2,3.5]
[1645992139577,0.17363053,2625.9,2623.2,3.5]
[1645992139578,3.5,2626.5,2624.3,5.0]
[1645992139776,3.06089736,2626.6,2624.6,1.0]
[1645992139777,0.04035806,2624.8,2624.6,1.0]
[1645992139977,0.93873419,2626.6,2624.7,0.07472681]
[1645992140179,0.96595392,2626.6,2624.8,0.16492879]
[1645992140376,0.07721973,2626.6,2624.7,2.08297274]
[1645992140581,0.07721973,2626.6,2625.0,1.068812]
[1645992140779,0.07721973,2626.6,2625.0,0.94217]
[1645992141277,5.0,2625.9,2625.0,0.94217]
[1645992141475,5.01257894,2625.9,2625.0,0.94217]
[1645992141687,0.01257894,2625.9,2625.0,0.94217]
[1645992141880,0.0171668,2627.0,2625.1,5.32388578]
[1645992142246,0.0271668,2627.4,2625.8,6.90372]
[1645992142443,0.0271668,2627.4,2626.5,0.95176]
[1645992142642,0.0271668,2627.4,2626.6,0.463]
[1645992142845,6.68e-05,2627.4,2626.5,1.16195077]
[1645992143042,6.68e-05,2627.4,2626.6,0.463]
[1645992143448,6.68e-05,2627.4,2626.7,0.94154]
[1645992144047,6.68e-05,2627.4,2626.8,0.18262719]
[1645992144347,0.615496,2626.8,2626.1,0.25]
[1645992144546,0.615496,2626.8,2625.2,19.5]
[1645992144748,0.615496,2626.8,2625.5,0.25]
[1645992144749,0.00320721,2626.7,2625.5,0.25]
[1645992145046,0.61870321,2626.8,2625.2,19.1983]
[1645992145249,0.61870321,2626.8,2625.2,18.8995]
[1645992145447,0.61870321,2626.8,2625.3,1.40566311]
[1645992145853,0.00330321,2626.8,2625.5,5.2043454]
[1645992146079,0.00330321,2626.8,2625.7,0.5]
[1645992146080,9.6e-05,2626.8,2625.7,0.5]
[1645992146269,9.6e-05,2626.8,2625.8,0.62113728]
[1645992146471,9.6e-05,2626.8,2625.8,0.463]
[1645992146676,9.6e-05,2626.8,2626.5,0.5]
[1645992147074,0.02240391,2627.8,2626.5,0.5]
[1645992147075,0.02240391,2627.8,2626.6,5.65625131]
[1645992147276,0.5752,2628.6,2627.4,5.0]
[1645992147478,0.05,2629.2,2627.9,10.0]
[1645992147677,0.0192404,2629.8,2628.6,0.01287169]
[1645992147881,0.0192404,2629.8,2628.7,0.463]
[1645992148078,0.38042,2628.9,2628.7,0.463]
[1645992148280,0.38042,2628.9,2628.0,3.00337864]
[1645992148281,0.34496,2628.9,2628.5,5.0]
[1645992148482,0.0192404,2629.8,2628.6,5.5]
[1645992148676,0.0192404,2629.8,2628.6,0.16138666]
[1645992148876,0.0192404,2629.8,2628.4,1.0]
[1645992149076,5.0,2629.4,2627.9,0.19856742]
[1645992149279,3.5,2629.3,2628.4,0.25]
[1645992149578,0.0192404,2629.8,2628.4,0.25]
[1645992150026,3.35659958,2630.2,2628.4,0.25]
[1645992150224,5.0,2629.7,2628.4,0.25]
[1645992150426,5.0,2629.3,2628.4,0.25]
[1645992150728,0.0031941,2629.7,2628.4,0.25]
[1645992150924,0.1104,2630.0,2628.4,0.25]
[1645992150925,0.0031941,2629.5,2628.4,0.25]
[1645992151132,0.0031941,2629.9,2628.4,0.25]
[1645992151325,0.0031941,2629.9,2627.5,0.06098024]
[1645992151326,5.0,2629.1,2627.5,0.06098024]
[1645992151528,0.01214927,2628.8,2626.7,0.38242]
[1645992151730,0.01214927,2628.8,2626.7,0.51147]
[1645992152529,0.01214927,2628.8,2626.6,0.25]
[1645992152927,5.0,2627.9,2626.6,0.25]
[1645992153129,4.2005,2628.2,2626.6,0.25]
[1645992153329,4.0932941,2627.9,2626.6,0.0001]
[1645992153577,10.01214927,2628.8,2626.6,0.0001]
[1645992153578,0.17309731,2627.8,2626.7,0.9567059]
[1645992153781,0.1104,2628.2,2627.0,0.9567059]
[1645992153977,0.1104,2628.2,2626.6,0.12915]
[1645992153978,0.1104,2628.2,2626.9,0.47523792]
[1645992154178,0.1104,2628.2,2627.0,0.9567059]
[1645992154377,0.1104,2628.2,2626.6,0.0001]
[1645992154779,3.6104,2628.2,2626.6,0.0001]
[1645992154983,0.1104,2628.2,2626.6,0.0001]
[1645992155278,0.1104,2628.2,2626.7,0.1522]
[1645992155477,0.1104,2628.2,2627.3,0.9567059]
[1645992155677,0.1104,2628.2,2626.7,0.1522]
[1645992155878,0.1104,2628.2,2627.3,0.44280279]
[1645992156287,0.69680642,2630.0,2627.3,0.44280279]
[1645992156288,9.5190789,2631.6,2627.4,5.0]
[1645992156482,0.12144974,2632.1,2627.4,5.0]
[1645992156483,0.00317951,2631.3,2628.7,0.01273127]
[1645992156684,0.00317951,2631.3,2629.9,0.01290414]
[1645992156881,0.04035807,2631.9,2631.2,0.44280279]
[1645992157082,0.04035807,2631.9,2630.7,0.25]
[1645992157337,42.40504415,2633.4,2630.0,11.98376322]
[1645992157338,4.55719721,2632.8,2630.0,0.50376322]
[1645992157538,4.55719721,2631.9,2630.1,3.5]
[1645992157735,3.5,2631.8,2630.0,0.67134322]
[1645992157936,3.5,2631.8,2630.0,0.67363801]
[1645992158139,3.5,2631.8,2628.7,0.15615614]
[1645992158140,0.01254307,2630.9,2628.2,0.12905]
[1645992158349,0.01254307,2630.9,2628.1,0.51147]
[1645992158544,0.01254307,2630.9,2628.3,0.25]
[1645992158545,4.55719721,2629.7,2628.3,0.25]
[1645992158745,0.01298918,2629.5,2628.3,0.25]
[1645992158946,0.01298918,2629.5,2627.9,0.1521]
[1645992159245,0.01298918,2629.5,2627.8,0.25]
[1645992159246,4.55719721,2628.6,2628.0,0.1521]
[1645992159443,4.45719721,2629.7,2628.0,0.1521]
[1645992159642,0.3802,2630.4,2629.5,0.00605893]
[1645992159643,4.45719721,2629.9,2629.5,0.00605893]
[1645992159841,3.5,2630.3,2627.8,0.00015893]
[1645992159842,4.45719721,2629.6,2627.8,0.00015893]
[1645992160143,1.0,2630.0,2627.4,0.13819997]
[1645992160144,4.45719721,2628.3,2627.5,0.25]
[1645992160445,11.48,2628.7,2626.7,0.54280279]
[1645992160446,15.93719721,2628.1,2626.7,0.54280279]
[1645992160648,11.48,2628.1,2626.7,0.54280279]
[1645992160842,0.00316385,2628.0,2626.7,0.54280279]
[1645992161071,0.00316385,2628.0,2627.1,0.54280279]
[1645992161277,0.13819997,2628.2,2627.1,0.54280279]
[1645992161278,0.00316385,2628.1,2627.1,0.54280279]
[1645992161480,0.14136382,2628.2,2626.8,0.54280279]
[1645992161675,0.14136382,2628.2,2627.3,0.54280279]
[1645992161876,0.13819997,2628.2,2626.8,0.54280279]
[1645992162076,0.13122637,2628.2,2626.8,0.54280279]
[1645992162276,15.93719721,2627.6,2626.8,0.54280279]
[1645992162479,0.13122637,2628.2,2625.9,0.54280279]
[1645992162480,15.93719721,2627.4,2625.9,0.54280279]
[1645992162679,3.5,2627.3,2626.1,0.54280279]
[1645992162878,4.45719721,2627.6,2626.5,0.54280279]
[1645992163076,4.45719721,2627.9,2626.5,0.54280279]
[1645992163284,4.58842358,2628.2,2627.1,0.54280279]